fUSD/lending_fUSD_20251126
["ID","MTS","AMOUNT","RATE_DAILY","PERIOD"]
[394938132,1764168632906,-500.0,0.00041927,31]
[394938133,1764168632915,-500.0,0.00041927,31]
[394938134,1764168632924,-536.82914633,0.00041927,31]
[394938135,1764168632934,-500.0,0.00041927,31]
[394938136,1764168632943,-500.0,0.00041927,31]
[394938137,1764168632952,-500.0,0.00041927,31]
[394938138,1764168632961,-500.0,0.00041927,31]
[394938139,1764168632970,-500.0,0.00041927,31]
[394938140,1764168632979,-500.0,0.00041927,31]
[394938141,1764168632989,-500.0,0.00041927,31]
[394938142,1764168632998,-500.0,0.00041927,31]
[394938143,1764168633008,-500.0,0.00041927,31]
[394938144,1764168633018,-547.62339951,0.00041927,31]
[394938145,1764168633027,-500.0,0.00041927,31]
[394938146,1764168633036,-500.0,0.00041927,31]
[394938147,1764168633046,-500.0,0.00041927,31]
[394938148,1764168633056,-500.0,0.00041928,120]
[394938149,1764168633066,-243568.14044386,0.00041928,2]
[394938150,1764168633079,-100454.48645614,0.00041928,2]
[394938151,1764168633089,-814.9538,0.00041928,120]
[394938152,1764168633099,-1000.0,0.00041928,2]
[394938153,1764168633109,-5000.0,0.00041929,120]
[394938154,1764168633119,-159.92827425,0.00041929,15]
[394938155,1764168633129,-500.0,0.00041931,120]
[394938156,1764168633139,-500.0,0.00041931,120]
[394938157,1764168633149,-500.0,0.00041931,120]
[394938158,1764168633158,-200.0,0.00041932,7]
[394938159,1764168633168,-278.19022,0.00041932,11]
[394938160,1764168633178,-528.05186033,0.00041973,10]
[394938161,1764168633188,-866.39673286,0.00041994,4]
[394938162,1764168633198,-500.0,0.00042004,2]
[394938163,1764168633207,-620.0,0.00042004,2]
[394938164,1764168633216,-500.0,0.00042004,2]
[394938165,1764168633226,-500.0,0.00042004,2]
[394938166,1764168633239,-500.0,0.00042004,2]
[394938167,1764168633248,-586.31002515,0.00042004,2]
[394938168,1764168633258,-166.68,0.00042005,2]
[394938169,1764168633270,-866.39673286,0.00042018,4]
[394938170,1764168633283,-500.0,0.00042027,120]
[394938171,1764168633293,-500.0,0.00042027,120]
[394938172,1764168633303,-500.0,0.00042027,120]
[394938173,1764168633312,-500.0,0.00042027,120]
[394938174,1764168633324,-249.06134295,0.00042027,120]
[394938175,1764168633333,-3586.0,0.00042027,7]
[394938176,1764168633344,-275.54642916,0.00042027,30]
[394938177,1764168633354,-150.00000002,0.00042027,30]
[394938178,1764168633364,-150.0,0.00042027,30]
[394938179,1764168633373,-150.0,0.00042027,30]
[394938180,1764168633383,-213.41718024,0.00042028,21]
[394938181,1764168633393,-235015.10194604,0.00042029,7]
[394938182,1764168633405,-30825.50882961,0.00042029,7]
[394938183,1764168633420,-200.0,0.00034048,2]
[394938184,1764168633429,-8626.13844562,0.00042029,7]
[394938185,1764168633445,-1766.24,0.00042029,7]
[394938186,1764168633456,-5191.00000007,0.00042029,7]
[394938187,1764168633468,-3457.99281745,0.00042029,7]
[394938188,1764168637719,-420.0,0.00034116,2]
[394938189,1764168637729,-196.68783483,0.00041819,2]
[394938192,1764168639567,-74.01686517,0.00041819,2]
[394938193,1764168639577,-647.22885114,0.00042029,7]
[394938194,1764168639588,-344.13000002,0.00042029,7]
[394938202,1764168645838,-3504.83955829,0.00042029,7]
[394938204,1764168645935,-318.06029427,0.00042029,7]
[394938205,1764168645946,-1641.05942,0.00042029,7]
[394938207,1764168645958,-580.0299999,0.00042029,7]
[394938386,1764169831643,-1200.0,0.00037824,3]
[394938387,1764169831652,-300.0,0.00037824,3]
[394938388,1764169831662,-150.0,0.00037825,7]
[394938389,1764169831671,-150.0,0.00037825,7]
[394938390,1764169831680,-150.0,0.00037825,7]
[394938391,1764169831691,-150.0,0.00037825,7]
[394938392,1764169831704,-150.0,0.00037825,7]
[394938393,1764169831714,-162.19986855,0.00037825,7]
[394938394,1764169831723,-150.0,0.00037825,7]
[394938395,1764169831734,-150.41147425,0.00037825,7]
[394938396,1764169831743,-150.0,0.00037825,7]
[394938397,1764169831753,-150.91340114,0.00037825,7]
[394938398,1764169831762,-150.0,0.00037825,7]
[394938399,1764169831774,-351.90692974,0.00038115,2]
[394938400,1764169831783,-135.97602772,0.00038215,2]
[394938401,1764169831796,-473.630693,0.00038215,2]
[394938402,1764169831808,-1166.84327928,0.00038215,2]
[394938403,1764169831818,-166.66,0.00038309,30]
[394938404,1764169831827,-2840.98789111,0.00038937,2]
[394938405,1764169831842,-1839.58893491,0.00038937,2]
[394938406,1764169831853,-2343.62747623,0.00038937,2]
[394938407,1764169831863,-166.66,0.00039115,30]
[394938408,1764169831872,-351.90692974,0.00039644,2]
[394938409,1764169831883,-1477.36508912,0.00039826,2]
[394938410,1764169831892,-166.66,0.00039922,30]
[394938411,1764169831902,-150.0,0.00039926,7]
[394938412,1764169831911,-1477.36508911,0.00040095,2]
[394938413,1764169831920,-2834.78949995,0.00040331,2]
[394938414,1764169831929,-1477.36508911,0.00040365,2]
[394938415,1764169831940,-200.0,0.00040368,2]
[394938416,1764169831949,-1477.36508911,0.00040634,2]
[394938417,1764169831958,-166.66,0.00040728,30]
[394938418,1764169831968,-1954.62027203,0.00040741,2]
[394938419,1764169831978,-1477.36508911,0.00040904,2]
[394938421,1764169831987,-150.0,0.00040949,2]
[394938423,1764169831996,-1036.94435835,0.00041002,2]
[394938425,1764169832005,-23.30307165,0.00041171,4]
[394938426,1764169832017,-826.69692835,0.00041171,4]
[394938427,1764169832027,-948.6455,0.00041172,2]
[394938428,1764169832037,-1198.45757165,0.00041172,2]
[394938429,1764169832049,-570.88444884,0.00041172,2]
[394938430,1764169832061,-538.25707951,0.00041172,2]
[394938431,1764169832071,-1328.99813332,0.00041172,2]
[394938432,1764169832083,-805.848,0.00041172,2]
[394938443,1764169837887,-858.18893031,0.00041172,2]
[394938444,1764169837956,-984.039998,0.00041172,2]
[394938445,1764169837967,-827.55773365,0.00041172,2]
[394938446,1764169837979,-509.61914462,0.00041172,2]
[394938451,1764169839719,-225.1705601,0.00041172,2]
[394938452,1764169839728,-44.52527236,0.00041173,2]
[394938453,1764169839821,-307.38165738,0.00041173,2]
[394938454,1764169839831,-761.40318507,0.00041173,2]
[394938455,1764169839840,-1477.36508911,0.00041173,2]
[394938456,1764169839850,-1086.7008,0.0004126,20]
[394938457,1764169839862,-647.536,0.0004127,60]
[394938458,1764169839872,-165.236,0.0004127,60]
[394938459,1764169839882,-504.44408651,0.00041273,5]
[394938460,1764169839892,-290.88716802,0.00041273,2]
[394938461,1764169839903,-500.0,0.00041273,10]
[394938462,1764169839912,-1000.0,0.00041292,2]
[394938463,1764169839924,-2500.0,0.00041292,2]
[394938464,1764169839934,-530.55981646,0.00041373,5]
[394938465,1764169839943,-500.0,0.00041373,2]
[394938466,1764169839952,-500.0,0.00041373,10]
[394938467,1764169839962,-152.34875994,0.00041373,10]
[394938468,1764169839971,-4331.98366436,0.00041382,4]
[394938469,1764169839980,-500.0,0.00041391,120]
[394938470,1764169839992,-500.0,0.00041391,120]
[394938471,1764169840002,-600.0,0.00041392,120]
[394938472,1764169840011,-382.34643954,0.00041435,15]
[394938473,1764169840021,-382.34643954,0.00041506,15]
[394938474,1764169840030,-166.66,0.00041535,30]
[394938475,1764169840039,-382.34643954,0.00041578,15]
[394938476,1764169840048,-382.34643954,0.00041649,15]
[394938477,1764169840057,-328.9856939,0.00041649,15]
[394938478,1764169840066,-600.0,0.00041666,120]
[394938479,1764169840075,-382.34643954,0.00041721,15]
[394938480,1764169840085,-328.9856939,0.00041721,15]
[394938481,1764169840094,-1442.8191871,0.00041754,2]
[394938482,1764169840107,-2400.58792013,0.00041789,2]
[394938483,1764169840116,-382.34643954,0.00041792,15]
[394938484,1764169840125,-328.9856939,0.00041792,15]
[394938485,1764169840135,-1000.0,0.00041828,2]
[394938486,1764169840144,-382.34643954,0.00041864,15]
[394938487,1764169840154,-328.9856939,0.00041864,15]
[394938488,1764169840163,-500.0,0.00041918,2]
[394938489,1764169840172,-418.0,0.00041918,2]
[394938490,1764169840182,-150.0,0.00041918,2]
[394938491,1764169840191,-150.0,0.00041918,2]
[394938503,1764169840400,-150.0,0.00041918,2]
[394938504,1764169840417,-500.0,0.00041931,11]
[394938505,1764169840427,-500.0,0.00041931,11]
[394938506,1764169840439,-500.0,0.00041931,11]
[394938507,1764169840448,-500.0,0.00041931,11]
[394938508,1764169840458,-500.0,0.00041931,11]
[394938509,1764169840468,-500.0,0.00041931,11]
[394938510,1764169840478,-500.0,0.00041931,11]
[394938511,1764169840487,-500.0,0.00041931,11]
[394938512,1764169840497,-538.72985887,0.00041931,11]
[394938513,1764169840506,-500.0,0.00041931,11]
[394938514,1764169840517,-500.0,0.00041931,11]
[394938515,1764169840526,-500.0,0.00041931,11]
[394938516,1764169840535,-500.0,0.00041931,11]
[394938517,1764169840545,-500.0,0.00041931,11]
[394938518,1764169840555,-500.0,0.00041931,11]
[394938519,1764169840564,-382.34643954,0.00041935,15]
[394938520,1764169840575,-328.9856939,0.00041935,15]
[394938521,1764169840583,-300.99782123,0.00041939,15]
[394938522,1764169840667,-19699.00217877,0.00041939,15]
[394938523,1764169840676,-600.0,0.0004194,120]
[394938524,1764169840686,-899.1701022,0.00041967,2]
[394938525,1764169840697,-231.82518,0.00042005,11]
[394938526,1764169840710,-150.0,0.00042027,30]
[394938527,1764169840719,-150.0,0.00042027,30]
[394938528,1764169840728,-200.0,0.00042029,7]
[394938529,1764169840739,-506.86963784,0.00042033,120]
[394938530,1764169840750,-170.75879404,0.00042034,31]
[394938531,1764169840760,-500.0,0.00042034,31]
[394938532,1764169840770,-394.18037772,0.00042034,31]
[394938533,1764169840782,-350.15005306,0.00042034,31]
[394938534,1764169840791,-493.36700864,0.00042034,31]
[394938535,1764169840800,-368.87939743,0.00042034,31]
[394938536,1764169840809,-151.0,0.00042035,120]
[394938537,1764169840818,-151.0,0.00042035,120]
[394938538,1764169840830,-159.936719,0.00042035,120]
[394938539,1764169840839,-326.59,0.00042035,30]
[394938540,1764169840848,-392.432039,0.00042035,30]
[394938541,1764169840857,-392.432039,0.00042035,30]
[394938542,1764169840867,-392.432039,0.00042035,30]
[394938543,1764169840876,-392.432039,0.00042035,30]
[394938544,1764169840885,-392.432039,0.00042035,30]
[394938545,1764169840894,-392.432039,0.00042035,30]
[394938546,1764169840905,-392.432039,0.00042035,30]
[394938547,1764169840915,-392.432039,0.00042035,30]
[394938548,1764169840924,-392.432039,0.00042035,30]
[394938549,1764169840934,-392.432039,0.00042035,30]
[394938550,1764169840944,-392.432039,0.00042035,30]
[394938551,1764169840953,-392.432039,0.00042035,30]
[394938552,1764169840963,-392.432039,0.00042035,30]
[394938553,1764169840972,-392.432039,0.00042035,30]
[394938554,1764169840982,-392.432039,0.00042035,30]
[394938555,1764169840991,-392.432039,0.00042035,30]
[394938556,1764169841001,-392.432039,0.00042035,30]
[394938557,1764169841010,-392.432039,0.00042035,30]
[394938558,1764169841019,-392.432039,0.00042035,30]
[394938559,1764169841028,-392.432039,0.00042035,30]
[394938560,1764169841039,-3210.0,0.00042035,7]
[394938561,1764169841048,-36501.583421,0.00042035,21]
[394938562,1764169841060,-3012.18751035,0.00042035,21]
[394938563,1764169841072,-2272.97969458,0.00042035,21]
[394938564,1764169841083,-1328.61017957,0.00042035,21]
[394938565,1764169841094,-2493.75422535,0.00042035,21]
[394938566,1764169841105,-980.87251112,0.00042035,21]
[394938567,1764169841118,-4558.55,0.00042035,21]
[394938568,1764169841131,-2568.0,0.00042035,21]
[394938590,1764169845062,-7463.46427739,0.00042035,21]
[394938591,1764169845073,-4657.80815368,0.00042035,7]
[394938592,1764169845154,-597.390588,0.00042035,7]
[394938593,1764169845255,-1410.86067932,0.00042035,7]
[394938594,1764169845267,-1262.17621679,0.00042035,7]
[394938595,1764169845280,-1543.09853918,0.00042035,7]
[394938596,1764169845295,-1630.68797686,0.00042035,7]
[394938597,1764169845306,-896.70793999,0.00042035,7]
[394938598,1764169845318,-846.95628169,0.00042035,7]
[394938599,1764169845329,-636.87301503,0.00042035,7]
[394938600,1764169845341,-429.98918981,0.00042035,7]
[394938601,1764169845352,-3864.38253781,0.00042035,7]
[394938609,1764169846276,-323.3467,0.00042035,7]
[394938610,1764170710760,195.0,0.000198,120]
[394938628,1764170962427,152.5,0.00013699,2]
[394938629,1764171031742,-4244.52222613,0.0001688,2]
[394938636,1764171031860,-1636.40549377,0.0001688,2]
[394938637,1764171031963,-1722.90736263,0.0001688,2]
[394938638,1764171031974,-55830.32793916,0.0001688,2]
[394938639,1764171031984,-232.0,0.0001688,2]
[394938640,1764171031993,-35343.66206084,0.00017,2]
[394938641,1764171032028,-2262.62614113,0.00017,2]
[394938651,1764171037832,-354.0347142,0.00016999,2]
[394938652,1764171037902,-145.9652858,0.00016999,2]
[394938653,1764171037914,-1742.4147142,0.00017,2]
[394938667,1764171039881,-332.57952245,0.00017,2]
[394938668,1764171039893,-955.80398612,0.00017,2]
[394938669,1764171039902,-184.93557175,0.00017999,2]
[394938670,1764171039911,-6143.98631839,0.00018,2]
[394938671,1764171039922,-543.74,0.00018,2]
[394938672,1764171040140,-65935.20022538,0.00018,2]
[394938673,1764171040151,-282.0592119,0.00018,2]
[394938674,1764171040162,-5000.0,0.00018,2]
[394938675,1764171040173,-511.16080038,0.00018,2]
[394938676,1764171040183,-568.88582762,0.00018,2]
[394938677,1764171040194,-2291.63780174,0.00018,2]
[394938678,1764171040206,-707.12359549,0.00018,2]
[394938679,1764171040217,-91615.23356955,0.00018,2]
[394938680,1764171040228,-696.95827117,0.00018,2]
[394938681,1764171040239,-85833.20259667,0.00018,2]
[394938682,1764171040293,-13267.22885556,0.00018,2]
[394938684,1764171040303,-152.5,0.00023973,2]
[394938686,1764171040312,-321.39046747,0.000298,2]
[394938687,1764171040321,-152.93857585,0.000299,2]
[394938688,1764171040330,-72314.08228915,0.0003,2]
[394938689,1764171040339,-370.24864648,0.000307,2]
[394938690,1764171040347,-321.3904674,0.00031534,2]
[394938691,1764171040356,-152.93857581,0.00032909,2]
[394938693,1764171040365,-250.0,0.00033,2]
[394938694,1764171040374,-321.3904674,0.00033267,2]
[394938695,1764171040383,-152.5,0.00034247,2]
[394938696,1764171040393,-518.029,0.00034469,39]
[394938697,1764171040403,-321.3904674,0.00035001,2]
[394938698,1764171040413,-152.93857581,0.00035918,2]
[394938699,1764171040423,-321.3904674,0.00036735,2]
[394938700,1764171040432,-500.0,0.00037838,30]
[394938701,1764171040441,-321.3904674,0.00038469,2]
[394938702,1764171040450,-152.93857581,0.00038927,2]
[394938703,1764171040459,-321.3904674,0.00040202,28]
[394938704,1764171040468,-200.0,0.00040292,2]
[394938705,1764171040477,-154.72,0.00040354,30]
[394938706,1764171040486,-1807.1,0.00040672,2]
[394938707,1764171040495,-250.0,0.00040697,2]
[394938708,1764171040504,-665.6,0.00040699,120]
[394938709,1764171040514,-2295.08713694,0.00041,9]
[394938710,1764171040523,-235.1519,0.00041071,2]
[394938711,1764171040533,-159.54,0.00041096,2]
[394938712,1764171040542,-151.0,0.00041169,14]
[394938713,1764171040552,-600.0,0.00041172,120]
[394938714,1764171040562,-426.78,0.00041445,120]
[394938715,1764171040571,-193.18765,0.0004155,9]
[394938716,1764171040580,-99999.9997,0.00041826,30]
[394938717,1764171040589,-429.0,0.0004188,120]
[394938718,1764171040599,-152.93857581,0.00041936,15]
[394938719,1764171040612,-321.3904674,0.00041936,28]
[394938720,1764171040621,-164.53491855,0.00041936,2]
[394938721,1764171040631,-151.0,0.00042029,14]
[394938722,1764171040640,-151.0,0.00042029,14]
[394938723,1764171040650,-151.0,0.00042029,14]
[394938724,1764171040659,-151.0,0.00042029,14]
[394938725,1764171040669,-151.0,0.00042029,14]
[394938726,1764171040679,-151.0,0.00042029,14]
[394938727,1764171040689,-151.0,0.00042029,14]
[394938728,1764171040699,-151.0,0.00042029,14]
[394938729,1764171040714,-151.0,0.00042029,14]
[394938730,1764171040723,-150.0,0.00042029,14]
[394938731,1764171040733,-500.0,0.00042029,14]
[394938732,1764171040743,-1512.2396,0.00042035,2]
[394938733,1764171040752,-1215.5588476,0.00042035,2]
[394938734,1764171040763,-200.0,0.00042035,7]
[394938735,1764171040772,-168.8178741,0.00042035,2]
[394938736,1764171040782,-431.51633409,0.00042035,31]
[394938737,1764171040791,-158.09117032,0.00042035,31]
[394938738,1764171040801,-150.06430845,0.00042035,31]
[394938739,1764171040810,-3110.0,0.00042036,7]
[394938740,1764171040820,-217.73,0.00042036,30]
[394938741,1764171040829,-500.0,0.00042036,7]
[394938742,1764171040839,-74469.82846835,0.00042036,7]
[394938748,1764171043898,-345.20725634,0.00042036,7]
[394938751,1764171046011,-414730.46014878,0.00042036,7]
[394938752,1764171046022,-88091.41979762,0.00042036,7]
[394938804,1764172232037,-150.0,0.00037825,7]
[394938805,1764172232047,-150.0,0.00037825,7]
[394938806,1764172232056,-54.78291623,0.00037825,7]
[394938807,1764172232067,-95.21708377,0.00037825,7]
[394938808,1764172232076,-150.0,0.00037825,7]
[394938809,1764172232085,-195.0,0.00037833,120]
[394938810,1764172232094,-500.0,0.00037841,30]
[394938811,1764172232103,-500.0,0.00037841,30]
[394938812,1764172232112,-7.98931388,0.00038,120]
[394938813,1764172232123,-292.01068612,0.00038,120]
[394938814,1764172232132,-785.43789309,0.00038253,2]
[394938815,1764172232143,-400.0,0.00038253,2]
[394938816,1764172232154,-294.93210691,0.00038253,2]
[394938817,1764172232163,-195.0,0.00039093,120]
[394938818,1764172232174,-300.0,0.0004,120]
[394938819,1764172232183,-200.0,0.00040739,2]
[394938820,1764172232192,-500.0,0.00040806,30]
[394938821,1764172232202,-1000.0,0.0004092,2]
[394938822,1764172232211,-1591.45350293,0.00040935,2]
[394938823,1764172232223,-301.45649707,0.00040935,2]
[394938824,1764172232232,-504.19,0.00041,30]
[394938825,1764172232242,-999.0,0.00041055,3]
[394938826,1764172232252,-500.0,0.00041061,5]
[394938827,1764172232262,-500.0,0.0004108,30]
[394938828,1764172232272,-163.76,0.00041107,2]
[394938829,1764172232281,-598.01,0.00041107,2]
[394938830,1764172232290,-500.0,0.00041354,30]
[394938831,1764172232299,-300.0,0.000414,120]
[394938833,1764172232308,-195.0,0.00041607,120]
[394938834,1764172232317,-500.0,0.00041628,30]
[394938837,1764172232327,-168.0,0.00041735,2]
[394938839,1764172232335,-1643.56440773,0.00041836,2]
[394938843,1764172232346,-3668.11136025,0.00041836,2]
[394938845,1764172232356,-7018.43457497,0.00041836,2]
[394938847,1764172232369,-645.60012687,0.00041836,2]
[394938849,1764172232380,-359.66796211,0.00041836,2]
[394938851,1764172232391,-13665.74136807,0.00041836,2]
[394938853,1764172232400,-688.6398684,0.00041839,15]
[394938855,1764172232409,-294.46813845,0.00041839,15]
[394938857,1764172232419,-688.63986834,0.0004185,15]
[394938859,1764172232434,-294.46813841,0.0004185,15]
[394938860,1764172232443,-950.96169682,0.00041861,15]
[394938861,1764172232453,-688.63986834,0.00041861,15]
[394938862,1764172232464,-294.46813841,0.00041861,15]
[394938863,1764172232473,-950.96169682,0.00041872,15]
[394938864,1764172232484,-688.63986834,0.00041872,15]
[394938865,1764172232494,-294.46813841,0.00041872,15]
[394938866,1764172232503,-950.96169682,0.00041883,15]
[394938867,1764172232512,-688.63986834,0.00041883,15]
[394938868,1764172232522,-294.46813841,0.00041883,15]
[394938869,1764172232531,-950.96169682,0.00041895,15]
[394938870,1764172232540,-688.63986834,0.00041895,15]
[394938871,1764172232548,-294.46813841,0.00041895,15]
[394938872,1764172232558,-950.96169682,0.00041906,15]
[394938873,1764172232568,-688.63986834,0.00041906,15]
[394938874,1764172232577,-294.46813841,0.00041906,15]
[394938875,1764172232586,-950.96169682,0.00041917,15]
[394938876,1764172232594,-688.63986834,0.00041917,15]
[394938877,1764172232605,-294.46813841,0.00041917,15]
[394938878,1764172232614,-950.96169682,0.00041928,15]
[394938879,1764172232625,-688.63986834,0.00041928,15]
[394938880,1764172232635,-294.46813841,0.00041928,15]
[394938881,1764172232645,-487.282,0.00041936,62]
[394938882,1764172232655,-162.15372602,0.00041936,62]
[394938883,1764172232664,-950.96169682,0.00041939,15]
[394938884,1764172232673,-688.63986834,0.00041939,15]
[394938885,1764172232682,-294.46813841,0.00041939,15]
[394938886,1764172232691,-300.0,0.00042,120]
[394938887,1764172232700,-160.98971,0.00042035,12]
[394938888,1764172232709,-200.0,0.00042036,7]
[394938889,1764172232719,-2330.0,0.00042039,7]
[394938890,1764172232868,-55590.00090968,0.00042039,21]
[394938891,1764172232878,-500.0,0.00042039,7]
[394938892,1764172232887,-162.084764,0.00042039,15]
[394938893,1764172232897,-500.0,0.00042039,7]
[394938894,1764172232907,-150.0,0.00042039,7]
[394938895,1764172232916,-217.73,0.00042039,30]
[394938896,1764172232928,-150.0,0.00042039,7]
[394938897,1764172232939,-91585.24388006,0.00042039,7]
[394938898,1764172232951,-678.22880999,0.00042039,7]
[394938899,1764172232961,-2690.95070822,0.00042039,7]
[394938901,1764172237943,-257.14460464,0.00042038,2]
[394938902,1764172237953,-436.75223375,0.00042038,31]
[394938906,1764172239046,-197.27174161,0.00042038,31]
[394938907,1764172239056,-63.58825939,0.00042038,31]
[394938913,1764172240315,-436.41174061,0.00042038,31]
[394938914,1764172240325,-466.13761739,0.00042038,31]
[394938915,1764172240336,-33.86238261,0.00042038,31]
[394938916,1764172240345,-238.47261502,0.00042038,31]
[394938917,1764172240354,-6.4228343,0.00042039,7]
[394938918,1764172240467,-764.0,0.00042039,7]
[394938923,1764172245458,-1622.07230364,0.00042039,7]
[394938924,1764172246262,-615845.66127191,0.00042039,7]
[394938925,1764172246383,-1383.54009619,0.00042039,7]
[394938926,1764172246394,-77127.20651267,0.00042039,7]
[394938927,1764172246406,-904.64662748,0.00042039,7]
[394938963,1764173432181,-500.0,0.00034,5]
[394938966,1764173432191,-2055.19420213,0.00034,14]
[394938970,1764173432204,-978.71373151,0.00034,14]
[394938973,1764173432217,-1813.73206636,0.00034,14]
[394938974,1764173432229,-169.0,0.000349,120]
[394938975,1764173432239,-300.0,0.00034919,119]
[394938978,1764173432249,-1600.0,0.00035518,3]
[394938980,1764173432259,-300.0,0.00035519,119]
[394938981,1764173432268,-300.0,0.00035519,119]
[394938982,1764173432278,-300.0,0.00035519,119]
[394938983,1764173432287,-400.0,0.00035957,3]
[394938984,1764173432296,-398.323,0.00035958,2]
[394938985,1764173432306,-561.0,0.00035958,2]
[394938986,1764173432315,-6250.77334831,0.00037857,2]
[394938987,1764173432335,-1126.55618914,0.00037857,2]
[394938988,1764173432346,-646.62018074,0.00037857,2]
[394938989,1764173432357,-394.17718249,0.00037857,2]
[394938990,1764173432369,-1270.36504624,0.00037857,2]
[394938991,1764173432381,-311.49805308,0.00037857,2]
[394938992,1764173432390,-131.06653699,0.00037857,2]
[394938993,1764173432402,-461.17361602,0.00037857,2]
[394938994,1764173432414,-407.74984699,0.00037857,2]
[394938995,1764173432424,-441.23732072,0.0003786,30]
[394938996,1764173432457,-58.76267928,0.0003786,30]
[394938997,1764173432466,-500.0,0.0003786,30]
[394938998,1764173432476,-454.69711136,0.000379,5]
[394938999,1764173432489,-188.27634567,0.000379,5]
[394939000,1764173432500,-159.0,0.00038,30]
[394939001,1764173432510,-150.99,0.00038,2]
[394939002,1764173432519,-2240.0,0.00038213,3]
[394939003,1764173432530,-300.0,0.0003839,119]
[394939004,1764173432540,-250.0,0.0003839,2]
[394939013,1764173432550,-200.0,0.00038515,5]
[394939014,1764173432764,-200.0,0.00038635,2]
[394939015,1764173432774,-166.66,0.00039023,30]
[394939016,1764173432784,-150.0,0.00039193,2]
[394939017,1764173432796,-250.0,0.0003955,2]
[394939018,1764173432805,-108.4907692,0.00039771,90]
[394939019,1764173432818,-51.5092308,0.00039771,90]
[394939020,1764173432830,-166.66,0.00039845,30]
[394939021,1764173432842,-2517.98977764,0.00039919,2]
[394939022,1764173432853,-6815.12586,0.00039919,2]
[394939023,1764173432864,-527.69098567,0.00039919,2]
[394939024,1764173432876,-235.07337669,0.00039919,2]
[394939025,1764173432886,-795.10986863,0.0004,14]
[394939028,1764173438520,-246.41205406,0.00034,2]
[394939029,1764173438530,-1244.14239408,0.0004,14]
[394939030,1764173438663,-308.95506463,0.0004,14]
[394939031,1764173438674,-616.68783483,0.0004,14]
[394939038,1764173440359,-674.82664481,0.0004,14]
[394939039,1764173440376,-1207.91819302,0.0004,14]
[394939040,1764173440386,-95.94635957,0.00040097,2]
[394939041,1764173440397,-290.9459004,0.00040097,2]
[394939042,1764173440487,-33.10774003,0.00040097,2]
[394939043,1764173440497,-451.28278673,0.00040123,120]
[394939044,1764173440509,-899.49462468,0.00040123,120]
[394939045,1764173440606,-390.204,0.00040123,120]
[394939058,1764173444525,-3259.01858859,0.00040123,120]
[394939059,1764173444535,-532.48,0.00040199,120]
[394939060,1764173444544,-166.66,0.00040666,30]
[394939061,1764173444553,-64.84141141,0.00040755,2]
[394939068,1764173446500,-3961.34858859,0.00040755,2]
[394939069,1764173446510,-5484.26,0.00041006,2]
[394939070,1764173446519,-166.66,0.0004101,2]
[394939071,1764173446529,-151.0,0.00041092,14]
[394939072,1764173446539,-500.0,0.00041094,31]
[394939073,1764173446549,-422.26572216,0.00041094,31]
[394939074,1764173446557,-26815.13568925,0.00041095,2]
[394939075,1764173446669,-32959.31281075,0.00041095,2]
[394939076,1764173446678,-240.0,0.00041111,5]
[394939077,1764173446687,-115087.18377271,0.00041195,2]
[394939078,1764173446696,-166.66,0.00041488,30]
[394939079,1764173446705,-162.0,0.00041538,2]
[394939080,1764173446719,-181.30257207,0.00041736,15]
[394939081,1764173446728,-3673.8996,0.00041736,2]
[394939082,1764173446737,-226.21864577,0.00041835,120]
[394939083,1764173446748,-389.825,0.00041835,62]
[394939084,1764173446757,-199.0,0.00041835,7]
[394939085,1764173446767,-510.46289227,0.00041835,120]
[394939086,1764173446777,-422.38585979,0.00041835,120]
[394939087,1764173446786,-500.0,0.00041835,120]
[394939088,1764173446801,-500.0,0.00041835,120]
[394939089,1764173446811,-500.0,0.00041835,120]